bitfinex-derivatives/quotes_SOLF0:USTF0_20220106
["timestamp","ask_amount","ask_price","bid_price","bid_amount"]
[1641481675612,3.0001,147.79,147.75,14.34551224]
[1641481675913,27.66479,147.81,147.75,14.34551224]
[1641481676514,3.0001,147.76,147.75,14.34551224]
[1641481677520,62.32968,147.76,147.71,6.96380951]
[1641481677718,3.0001,147.72,147.71,6.96380951]
[1641481677919,3.0001,147.74,147.71,6.96380951]
[1641481678219,55.32958,147.76,147.71,6.96380951]
[1641481678419,3.0001,147.72,147.71,6.96380951]
[1641481678621,3.0001,147.74,147.68,38.27029284]
[1641481679721,3.0001,147.75,147.68,65.93508284]
[1641481680521,3.0001,147.75,147.68,66.93498284]
[1641481680723,27.66479,147.76,147.68,65.93508284]
[1641481681021,3.0001,147.75,147.68,65.93508284]
[1641481681221,27.66479,147.76,147.68,38.27029284]
[1641481681422,27.66479,147.76,147.69,45.23410235]
[1641481681622,3.0001,147.75,147.69,45.23410235]
[1641481682022,27.66479,147.76,147.69,38.27029284]
[1641481683022,3.0001,147.75,147.69,38.27029284]
[1641481683424,27.66479,147.76,147.69,38.27029284]
[1641481683726,3.0001,147.75,147.69,38.27029284]
[1641481683927,27.66479,147.76,147.69,38.27029284]
[1641481684227,30.66489,147.76,147.69,38.27029284]
[1641481684426,27.66479,147.76,147.69,38.27029284]
[1641481684627,27.66479,147.76,147.71,0.9999]
[1641481684827,27.66479,147.76,147.72,0.9999]
[1641481685030,3.0001,147.79,147.71,0.9999]
[1641481685228,3.0001,147.79,147.72,0.9999]
[1641481685429,3.0001,147.8,147.75,0.9999]
[1641481685629,45.03161806,147.83,147.73,0.9999]
[1641481685830,38.27029284,147.83,147.74,27.66479]
[1641481686129,94.53439,147.84,147.75,0.9999]
[1641481686329,97.53449,147.84,147.74,27.66479]
[1641481686731,94.53439,147.84,147.76,0.9999]
[1641481687135,27.66479,147.84,147.76,0.9999]
[1641481687332,27.66479,147.84,147.77,0.9999]
[1641481688033,27.66479,147.84,147.76,39.27019284]
[1641481688736,27.66479,147.84,147.79,0.9999]
[1641481688935,3.0001,147.86,147.8,0.9999]
[1641481689134,135.60059464,147.89,147.79,0.9999]
[1641481689336,3.0001,147.87,147.79,0.9999]
[1641481689735,3.0001,147.87,147.8,0.9999]
[1641481689938,3.0001,147.87,147.8,28.66469]
[1641481690135,97.3303018,147.89,147.8,47.66479]
[1641481690136,5.66489,147.89,147.8,47.66479]
[1641481690335,3.0001,147.9,147.8,27.66479]
[1641481690535,3.0001,147.9,147.84,0.9999]
[1641481690736,3.0001,147.9,147.83,0.9999]
[1641481690935,3.0001,147.9,147.8,28.66469]
[1641481691136,3.0001,147.89,147.8,27.66479]
[1641481691439,6.75812665,147.9,147.81,6.96380951]
[1641481691837,3.0001,147.86,147.81,6.96380951]
[1641481692839,3.0001,147.86,147.8,27.66479]
[1641481693343,45.02841949,147.9,147.8,27.66479]
[1641481694142,4.0,147.88,147.81,6.95863539]
[1641481694347,18.91783729,147.9,147.81,6.95863539]
[1641481694348,3.0001,147.87,147.81,6.95863539]
[1641481694543,6.75926865,147.88,147.81,6.95863539]
[1641481694743,3.0001,147.86,147.81,6.95863539]
[1641481694944,6.75926865,147.88,147.81,6.95863539]
[1641481695144,3.0001,147.89,147.81,0.9999]
[1641481695445,3.0001,147.89,147.82,0.9999]
[1641481696144,3.0001,147.89,147.88,27.66479]
[1641481696847,6.75766996,147.91,147.88,32.11279]
[1641481697045,9.75776996,147.91,147.88,32.11279]
[1641481698246,9.75776996,147.91,147.88,59.77758]
[1641481698646,3.0001,147.9,147.88,59.77758]
[1641481698847,6.75766996,147.91,147.88,59.77758]
[1641481699147,6.75766996,147.91,147.88,32.11279]
[1641481699449,9.75776996,147.91,147.88,32.11279]
[1641481699949,6.75766996,147.91,147.88,32.11279]
[1641481700447,3.0001,147.9,147.88,32.11279]
[1641481700849,6.75766996,147.91,147.88,32.11279]
[1641481701649,9.75776996,147.91,147.88,32.11279]
[1641481701848,9.75776996,147.91,147.88,27.66479]
[1641481702050,6.75766996,147.91,147.83,0.9999]
[1641481702249,6.75766996,147.91,147.85,27.66479]
[1641481702549,3.0001,147.86,147.85,27.66479]
[1641481702749,3.0001,147.86,147.81,49.68252105]
[1641481702951,3.0001,147.83,147.81,49.68252105]
[1641481703150,4.0,147.89,147.81,49.68252105]
[1641481703351,3.0001,147.84,147.81,38.27029284]
[1641481703551,3.0001,147.86,147.78,16.93993958]
[1641481703751,4.0,147.9,147.78,16.93993958]
[1641481704051,3.0001,147.88,147.78,24.89883958]
[1641481704252,45.0279628,147.91,147.82,27.66479]
[1641481704452,3.0001,147.9,147.82,33.35679]
[1641481704654,57.18767344,147.91,147.82,34.35669]
[1641481705052,57.18767344,147.91,147.83,0.9999]
[1641481705251,60.18777344,147.91,147.82,33.35679]
[1641481705452,18.9173806,147.91,147.83,6.95993958]
[1641481706252,3.0001,147.89,147.83,7.95983958]
[1641481706452,18.9173806,147.91,147.85,0.9999]
[1641481706652,18.9173806,147.91,147.85,6.962]
[1641481706852,3.36194591,147.9,147.85,6.962]
[1641481707155,3.0001,147.89,147.85,6.962]
[1641481707354,3.36194591,147.9,147.85,6.962]
[1641481707752,6.75766996,147.91,147.86,1.41549472]
[1641481708153,9.75776996,147.91,147.86,1.41549472]
[1641481708353,6.75766996,147.91,147.86,1.41549472]
[1641481708553,3.0001,147.89,147.86,1.41549472]
[1641481708753,6.75766996,147.91,147.86,1.41549472]
[1641481708955,3.0001,147.89,147.86,1.41549472]
[1641481709156,3.36192842,147.9,147.86,1.41549472]
[1641481709356,3.0001,147.88,147.86,1.41549472]
[1641481709755,3.36192842,147.9,147.86,1.41549472]
[1641481710057,3.0001,147.88,147.86,1.41549472]
[1641481710858,3.0001,147.88,147.85,1.41549472]
[1641481712159,21.08994812,147.91,147.85,1.41549472]
[1641481712662,3.0001,147.87,147.84,14.33271638]
[1641481712860,21.08994812,147.91,147.84,14.33271638]
[1641481713059,4.77770296,147.87,147.84,14.33271638]
[1641481713260,3.0001,147.85,147.84,14.33271638]
[1641481714060,10.36366555,147.85,147.84,4.77879033]
[1641481714262,38.02845555,147.85,147.84,4.77879033]
[1641481714460,34.02845555,147.85,147.84,4.77879033]
[1641481714861,34.02845555,147.85,147.84,9.033e-05]
[1641481715061,34.02845555,147.85,147.82,9.033e-05]
[1641481715264,3.0001,147.83,147.82,9.033e-05]
[1641481716164,6.36366555,147.83,147.82,9.033e-05]
[1641481716866,3.0001,147.83,147.82,9.033e-05]
[1641481718371,6.36477324,147.83,147.78,14.33271638]
[1641481718669,3.36467324,147.83,147.78,14.33271638]
[1641481718870,3.0001,147.82,147.78,14.33271638]
[1641481719070,3.36467324,147.83,147.79,0.9999]
[1641481719271,3.36467324,147.83,147.79,7.0349]
[1641481719471,3.36467324,147.84,147.79,7.0349]
[1641481719871,7.324e-05,147.84,147.79,6.035]
[1641481720071,7.324e-05,147.84,147.8,0.9999]
[1641481720273,120.905371,147.89,147.82,14.33271638]
[1641481720471,38.27029284,147.93,147.85,0.9999]
[1641481720671,23.0280628,147.93,147.9,27.66479]
[1641481720873,3.0001,147.92,147.9,34.34679]
[1641481721071,3.0001,147.91,147.9,34.34679]
[1641481721273,3.0001,147.91,147.9,6.682]
[1641481721971,3.0001,147.91,147.82,0.9999]
[1641481722172,3.0001,147.9,147.85,0.9999]
[1641481722371,3.0001,147.9,147.85,7.176]
[1641481722672,3.0001,147.89,147.85,34.84079]
[1641481723871,3.0001,147.89,147.85,35.84069]
[1641481724171,3.0001,147.89,147.85,34.84079]
[1641481724771,3.0001,147.9,147.85,34.84079]
[1641481725673,3.0001,147.9,147.85,35.84069]
[1641481725871,3.0001,147.89,147.85,34.84079]
[1641481726071,66.2598,147.93,147.85,34.84079]
[1641481726271,3.0001,147.9,147.85,34.84079]
[1641481726672,66.2598,147.93,147.85,34.84079]
[1641481726971,3.0001,147.9,147.85,34.84079]
[1641481727674,3.0001,147.89,147.85,34.84079]
[1641481729974,3.0001,147.9,147.85,34.84079]
[1641481730375,66.2598,147.93,147.85,34.84079]
[1641481730677,3.0001,147.9,147.85,34.84079]
[1641481731275,12.1457757,147.92,147.85,34.84079]
[1641481731475,3.0001,147.9,147.85,34.84079]
[1641481732075,12.1457757,147.92,147.85,34.84079]
[1641481732276,66.2598,147.93,147.85,34.84079]
[1641481732277,3.0001,147.9,147.85,34.84079]
[1641481732478,66.2598,147.93,147.85,34.84079]
[1641481732777,3.0001,147.89,147.85,62.50558]
[1641481733677,70.2598,147.93,147.85,62.50558]
[1641481733876,4.0,147.92,147.85,62.50558]
[1641481734077,3.0001,147.86,147.79,76.1662]
[1641481734277,4.0,147.9,147.79,10.38]
[1641481734478,4.0,147.91,147.79,11.3799]
[1641481734680,3.0001,147.85,147.79,10.38]
[1641481734880,43.80985031,147.91,147.8,27.66479]
[1641481735084,3.0001,147.89,147.8,28.66469]
[1641481735280,3.0001,147.9,147.8,27.66479]
[1641481735482,3.0001,147.89,147.81,0.9999]
[1641481735682,3.0001,147.89,147.81,6.571]
[1641481735881,3.0001,147.89,147.81,13.53591902]
[1641481736082,63.6639,147.92,147.81,13.53591902]
[1641481736385,3.0001,147.89,147.81,14.53581902]
[1641481736585,66.2598,147.93,147.81,13.53591902]
[1641481736788,66.2598,147.93,147.85,27.66479]
[1641481736789,4.0,147.92,147.85,27.66479]
[1641481736983,4.0,147.92,147.81,6.96491902]
[1641481737183,3.0001,147.87,147.81,6.96491902]
[1641481737683,3.0001,147.89,147.81,6.96491902]
[1641481738285,12.14561434,147.92,147.81,6.96491902]
[1641481738583,3.0001,147.88,147.81,6.96491902]
[1641481738783,3.0001,147.87,147.84,27.66479]
[1641481738986,7.0001,147.85,147.81,6.96491902]
[1641481739183,3.0001,147.82,147.81,6.96491902]
[1641481739384,6.75972556,147.88,147.81,6.96491902]
[1641481739585,4.0,147.89,147.81,6.96491902]
[1641481739787,3.0001,147.83,147.81,6.96491902]
[1641481739986,3.0001,147.85,147.81,6.96491902]
[1641481740387,6.7588118,147.9,147.81,6.96491902]
[1641481740590,3.0001,147.86,147.81,6.96491902]
[1641481740792,6.7588118,147.9,147.81,6.96491902]
[1641481740991,3.0001,147.84,147.81,6.96491902]
[1641481741391,3.0001,147.82,147.81,6.96491902]
[1641481741790,8.4901,147.82,147.81,6.96491902]
[1641481741989,8.4901,147.82,147.78,3.82318511]
[1641481742191,3.0001,147.8,147.78,3.82318511]
[1641481742391,5.49,147.82,147.78,3.82318511]
[1641481742592,3.0001,147.79,147.78,3.82318511]
[1641481742790,3.0001,147.79,147.77,38.22760064]
[1641481742990,3.0001,147.81,147.77,38.22760064]
[1641481743191,3.0001,147.83,147.76,27.66479]
[1641481743392,3.0001,147.84,147.76,27.66479]
[1641481743592,69.383,147.87,147.76,27.66479]
[1641481743990,73.383,147.87,147.76,27.66479]
[1641481744190,3.0001,147.81,147.76,27.66479]
[1641481744590,69.383,147.87,147.76,27.66479]
[1641481744791,3.0001,147.85,147.76,27.66479]
[1641481744991,69.383,147.87,147.8,27.66479]
[1641481745392,3.0001,147.86,147.8,27.66479]
[1641481745592,3.0001,147.83,147.8,27.66479]
[1641481745792,69.383,147.87,147.8,27.66479]
[1641481745993,69.383,147.87,147.81,6.96504567]
[1641481746192,3.0001,147.85,147.81,6.96504567]
[1641481746391,69.383,147.87,147.81,6.96504567]
[1641481746593,3.0001,147.84,147.81,6.96504567]
[1641481746993,38.4236018,147.9,147.81,6.96504567]
[1641481747195,34.4236018,147.9,147.81,6.96504567]
[1641481747393,3.0001,147.88,147.81,12.90904567]
[1641481747594,38.22760064,147.91,147.81,12.90904567]
[1641481747793,3.0001,147.88,147.81,12.90904567]
[1641481747992,38.22760064,147.91,147.81,12.90904567]
[1641481748193,3.0001,147.87,147.81,12.90904567]
[1641481748394,3.0001,147.83,147.81,6.96504567]
[1641481748596,4.0,147.89,147.81,6.96504567]
[1641481748793,64.0379,147.92,147.81,6.96504567]
[1641481748794,3.0001,147.83,147.81,6.96504567]
[1641481748993,8.2261,147.85,147.81,6.96504567]
[1641481749195,27.66479,147.88,147.81,6.96504567]
[1641481749393,3.0001,147.83,147.81,6.96504567]
[1641481749594,27.66479,147.88,147.81,6.96504567]
[1641481749992,4.0,147.89,147.78,49.64770323]
[1641481750194,3.0001,147.84,147.77,53.47088834]
[1641481750393,31.66479,147.9,147.77,54.47078834]
[1641481750595,3.0001,147.84,147.77,53.47088834]
[1641481750894,27.66479,147.86,147.77,53.47088834]
[1641481751093,3.0001,147.83,147.81,14.33537134]
[1641481751494,3.0001,147.82,147.81,14.33537134]
[1641481751694,7.0001,147.82,147.81,14.33537134]
[1641481751893,3.0001,147.82,147.81,14.33537134]
[1641481752292,3.0001,147.82,147.77,10.78812707]
[1641481752293,27.66479,147.86,147.8,14.33537134]
[1641481752493,3.0001,147.81,147.8,14.33537134]
[1641481753295,3.0001,147.81,147.78,14.33537134]
[1641481753697,46.00016134,147.86,147.78,14.33537134]
[1641481753898,3.0001,147.82,147.78,14.33537134]
[1641481754096,3.0001,147.85,147.78,14.33537134]
[1641481754296,14.33537134,147.84,147.78,5.147]
[1641481754897,14.33537134,147.84,147.81,27.66479]
[1641481755099,14.33537134,147.84,147.81,34.07379]
[1641481755297,3.0001,147.84,147.81,48.40916134]
[1641481755497,14.33537134,147.88,147.81,48.40916134]
[1641481755698,18.33537134,147.88,147.81,48.40916134]
[1641481755898,3.0001,147.83,147.81,48.40916134]
[1641481756699,3.0001,147.86,147.81,48.40916134]
[1641481756898,3.0001,147.84,147.82,21.30029508]
[1641481757099,3.0001,147.86,147.82,21.30029508]
[1641481757299,3.0001,147.84,147.82,21.30029508]
[1641481757500,14.33537134,147.89,147.82,21.30029508]
[1641481757699,18.33537134,147.89,147.82,21.30029508]
[1641481757999,3.0001,147.85,147.82,21.30029508]
[1641481758299,18.33537134,147.89,147.82,21.30029508]
[1641481758699,3.0001,147.84,147.82,21.30029508]
[1641481759200,3.0001,147.83,147.82,21.30029508]
[1641481760203,18.33537134,147.89,147.82,21.30029508]
[1641481760602,3.0001,147.85,147.82,22.71759685]
[1641481760802,3.0001,147.84,147.82,22.71759685]
[1641481761002,3.0001,147.83,147.82,22.71759685]
[1641481761203,7.0001,147.83,147.82,1.41730177]
[1641481761405,7.0001,147.83,147.79,38.22760064]
[1641481761705,7.0001,147.8,147.77,33.22653622]
[1641481761903,7.0001,147.78,147.77,33.22653622]
[1641481762304,13.76508444,147.78,147.73,3.82412141]
[1641481762503,3.0001,147.74,147.73,3.82412141]
[1641481762906,3.0001,147.74,147.69,14.04412141]
[1641481763305,4.0,147.76,147.69,14.04412141]
[1641481763506,4.0,147.77,147.69,10.22]
[1641481763705,1.71964735,147.7,147.66,3.82412141]
[1641481763906,4.0,147.76,147.66,3.82412141]
[1641481763907,6.76635767,147.73,147.66,3.82412141]
[1641481764105,6.76635767,147.73,147.65,13.98412141]
[1641481764307,6.76521327,147.76,147.65,13.98412141]
[1641481764506,6.76544212,147.75,147.65,13.98412141]
[1641481764706,6.76750245,147.71,147.65,13.98412141]
[1641481764907,4.0,147.69,147.65,13.98412141]
[1641481765106,39.86929245,147.71,147.61,31.48891141]
[1641481765508,4.0,147.69,147.61,31.48891141]
[1641481765706,4.0,147.68,147.61,31.48891141]
[1641481766206,4.0,147.69,147.61,31.48891141]
[1641481766407,4.0,147.7,147.61,31.48891141]
[1641481766810,38.43229245,147.71,147.61,31.48891141]
[1641481767207,4.0,147.7,147.61,31.48891141]
[1641481767407,38.43229245,147.71,147.61,31.48891141]
[1641481767607,34.43229245,147.71,147.61,31.48891141]
[1641481767907,4.0,147.72,147.61,31.48891141]
[1641481768107,4.0,147.71,147.61,38.20391141]
[1641481768507,4.0,147.71,147.61,34.37979]
[1641481768708,34.43091876,147.74,147.61,34.37979]
[1641481768908,38.43091876,147.74,147.61,34.37979]
[1641481769108,38.43091876,147.74,147.65,27.66479]
[1641481769310,27.66479,147.76,147.65,32.82879]
[1641481769508,6.76452682,147.77,147.65,36.82879]
[1641481769908,10.76452682,147.77,147.65,32.82879]
[1641481770311,6.76452682,147.77,147.65,27.66479]
[1641481770509,10.76567099,147.75,147.65,27.66479]
[1641481770708,4.0,147.74,147.65,27.66479]
[1641481770908,10.76567099,147.75,147.65,27.66479]
[1641481771110,38.43046099,147.75,147.65,27.66479]
[1641481771310,4.0,147.74,147.65,27.66479]
[1641481771510,4.0,147.73,147.65,27.66479]
[1641481772911,38.43046099,147.75,147.65,27.66479]
[1641481773110,38.43046099,147.75,147.65,32.26579]
[1641481773312,34.43046099,147.75,147.65,32.26579]
[1641481773715,96.43639,147.78,147.65,32.26579]
[1641481773912,27.66479,147.78,147.66,4.0]
[1641481774112,27.0590225,147.8,147.66,4.0]
[1641481774312,69.3646,147.82,147.68,4.0]
[1641481774512,73.3646,147.82,147.68,10.081]
[1641481774714,73.3646,147.82,147.68,6.081]
[1641481775113,4.0,147.81,147.73,27.66479]
[1641481775612,4.0,147.78,147.73,27.66479]
[1641481775812,4.0,147.78,147.73,32.41369759]
[1641481776414,4.0,147.75,147.73,4.74890759]
[1641481776612,4.0,147.76,147.73,4.74890759]
[1641481776813,4.0,147.76,147.72,4.74890759]
[1641481777012,6.76406926,147.78,147.72,4.74890759]
[1641481777515,4.74890759,147.78,147.71,7.242]
[1641481778616,6.76292564,147.81,147.74,4.74890759]
[1641481778914,32.41369759,147.82,147.74,4.74890759]
[1641481779516,27.66479,147.82,147.75,4.74890759]
[1641481780117,31.66479,147.82,147.75,4.74890759]
[1641481780317,31.66479,147.82,147.73,27.66479]
[1641481780318,4.0,147.81,147.74,4.74890759]
[1641481780519,6.76292564,147.81,147.74,4.74890759]
[1641481780718,10.76292564,147.81,147.74,4.74890759]
[1641481781121,27.66479,147.79,147.74,4.74890759]
[1641481781319,4.0,147.78,147.74,4.74890759]
[1641481781521,4.0,147.78,147.71,4.74890759]
[1641481781721,4.0,147.77,147.71,4.74890759]
[1641481781921,6.76406926,147.78,147.71,4.74890759]
[1641481782121,6.76544212,147.75,147.71,4.74890759]
[1641481782525,4.74890759,147.77,147.7,27.66479]
[1641481784226,6.76406926,147.78,147.72,4.74890759]
[1641481786227,10.76406926,147.78,147.72,4.74890759]
[1641481786831,11.51297685,147.78,147.7,32.41369759]
[1641481787028,4.74890759,147.78,147.7,32.41369759]
[1641481787629,4.74890759,147.8,147.71,4.74890759]
[1641481788130,4.0,147.78,147.71,4.74890759]
[1641481788330,4.0,147.78,147.73,4.74890759]
[1641481788731,6.76452682,147.77,147.73,4.74890759]
[1641481788933,4.0,147.76,147.66,102.0753908]
[1641481789132,4.0,147.76,147.66,64.0738]
[1641481789331,27.66479,147.74,147.66,91.73859]
[1641481789532,27.66479,147.77,147.66,27.66479]
[1641481790534,27.66479,147.77,147.66,31.66479]
[1641481791238,6.76384051,147.79,147.71,27.66479]
[1641481791437,6.76384051,147.79,147.71,32.85779]
[1641481791637,27.66479,147.82,147.71,36.85779]
[1641481791838,27.66479,147.82,147.71,32.85779]
[1641481792238,27.66479,147.82,147.71,47.13387802]
[1641481792639,27.66479,147.82,147.71,51.13387802]
[1641481792837,27.66479,147.82,147.71,47.13387802]
[1641481793038,27.66479,147.82,147.73,14.27608802]
[1641481793238,27.66479,147.82,147.74,27.66479]
[1641481793438,6.76201102,147.83,147.74,27.66479]
[1641481794239,14.27608802,147.82,147.75,21.19471505]
[1641481795639,45.94087802,147.85,147.77,14.27608802]
[1641481796440,14.27608802,147.84,147.77,14.27608802]
[1641481798942,14.27608802,147.84,147.75,6.91862703]
[1641481798943,14.27608802,147.85,147.78,14.27608802]
[1641481799542,14.27608802,147.85,147.78,41.94087802]
[1641481800745,14.27608802,147.85,147.78,49.20587802]
[1641481801345,45.94087802,147.87,147.8,14.27608802]
[1641481801846,4.0,147.84,147.8,14.27608802]
[1641481802045,10.342,147.84,147.8,14.27608802]
[1641481802647,6.342,147.84,147.8,14.27608802]
[1641481802848,3.36746164,147.86,147.8,14.27608802]
[1641481803047,41.94087802,147.87,147.8,14.27608802]
[1641481803247,3.36828454,147.83,147.81,4.0]
[1641481803447,14.27608802,147.85,147.81,4.0]
[1641481803649,14.27608802,147.85,147.81,27.66479]
[1641481804450,4.0,147.85,147.81,31.66479]
[1641481804848,38.0015908,147.88,147.81,31.66479]
[1641481804849,4.0,147.89,147.82,21.2266401]
[1641481805549,4.0,147.89,147.85,27.66479]
[1641481806553,4.0,147.89,147.85,37.90379]
[1641481806749,4.0,147.89,147.85,33.90379]
[1641481807451,50.16414413,147.93,147.85,33.90379]
[1641481807652,50.16414413,147.93,147.9,27.66479]
[1641481807854,55.23853699,147.98,147.9,33.01579]
[1641481808053,30.23853699,147.98,147.9,33.01579]
[1641481808253,17.47853699,147.98,147.92,4.0]
[1641481808456,75.01600942,148.02,147.95,4.0]
[1641481808653,62.37654019,148.04,147.96,10.74877678]
[1641481808853,44.53654019,148.04,147.98,4.0]
[1641481809054,29.55654019,148.04,147.97,24.0]
[1641481809554,29.55654019,148.04,147.99,4.0]
[1641481809754,146.20201841,148.09,148.01,27.66479]
[1641481810155,27.66479,148.09,148.01,27.66479]
[1641481811556,34.41516127,148.09,148.01,27.66479]
[1641481812758,4.0,148.07,148.01,27.66479]
[1641481812959,34.41516127,148.09,148.01,27.66479]
[1641481813158,4.0,148.08,148.01,27.66479]
[1641481813358,31.66479,148.09,148.01,27.66479]
[1641481814161,27.66479,148.09,148.01,27.66479]
[1641481814361,27.66479,148.09,148.01,33.04379]
[1641481814562,31.66479,148.09,148.01,33.04379]
[1641481814761,27.66479,148.09,148.01,33.04379]
[1641481816567,4.0,148.08,148.01,33.04379]
[1641481816766,27.66479,148.09,148.01,33.04379]
[1641481817166,38.41538912,148.09,148.01,33.04379]
[1641481817366,38.41538912,148.09,148.01,27.66479]
[1641481817767,31.66479,148.09,148.01,27.66479]
[1641481817967,4.0,148.04,147.97,69.3615]
[1641481818171,6.7549311,147.99,147.9,10.28]
[1641481818369,13.3999311,147.99,147.87,67.0485]
[1641481818769,13.3999311,147.99,147.87,76.9085]
[1641481818970,6.645,147.99,147.87,76.9085]
[1641481819374,6.75379056,148.02,147.87,80.9085]
[1641481819769,27.66479,148.01,147.92,27.66479]
[1641481820171,34.41903673,148.01,147.92,27.66479]
[1641481820671,4.0,147.98,147.92,27.66479]
[1641481820871,6.75607202,147.97,147.89,27.66479]
[1641481821369,6.75447484,148.0,147.89,27.66479]
[1641481821970,27.66479,148.01,147.89,27.66479]
[1641481822170,34.41880864,148.01,147.89,27.66479]
[1641481823274,38.41880864,148.01,147.89,27.66479]
[1641481823471,34.41880864,148.01,147.89,27.66479]
[1641481823671,34.41880864,148.01,147.93,27.66479]
[1641481824271,17.20902736,148.0,147.93,27.66479]
[1641481824471,17.20902736,148.0,147.93,20.0260952]
[1641481824671,6.75401864,148.01,147.93,20.0260952]
[1641481825073,6.75401864,148.01,147.93,24.6220952]
[1641481825472,17.20902736,148.03,147.93,24.6220952]
[1641481825672,17.20902736,148.03,147.96,27.66479]
[1641481825873,17.20902736,148.03,147.96,33.34979]
[1641481826072,17.20902736,148.03,147.96,37.34979]
[1641481826272,44.87381736,148.06,147.96,37.34979]
[1641481826872,44.87381736,148.06,147.96,33.34979]
[1641481827173,27.66479,148.06,147.96,33.34979]
[1641481827371,95.50169001,148.12,147.96,33.34979]
[1641481827372,57.31261083,148.12,147.96,40.09833906]
[1641481827572,57.31261083,148.12,148.01,4.0]
[1641481827774,57.31261083,148.12,148.07,27.66479]
[1641481827972,57.31261083,148.12,148.07,34.57479]
[1641481828173,38.16537366,148.1,148.07,34.57479]
[1641481828573,38.16537366,148.1,148.07,27.66479]
[1641481829674,38.16537366,148.1,148.05,27.66479]
[1641481829874,48.9155171,148.1,148.05,27.66479]
[1641481830076,38.16537366,148.09,148.05,27.66479]
[1641481830274,38.16537366,148.09,148.02,27.66479]
[1641481830475,4.0,148.07,147.97,63.3831]
[1641481830674,4.0,148.07,147.95,106.63877366]
[1641481830876,6.486,148.08,147.96,10.1]
[1641481831277,6.75151065,148.07,147.96,10.1]
[1641481831476,4.0,148.03,147.94,38.16537366]
[1641481831678,4.931,148.03,147.96,27.66479]
[1641481831876,4.931,148.03,147.94,65.83016366]
[1641481831877,8.931,148.03,147.94,27.66479]
[1641481832278,4.931,148.03,147.94,27.66479]
[1641481832878,54.26591555,148.03,147.94,27.66479]
[1641481833679,38.16537366,148.02,147.94,27.66479]
[1641481833877,42.16537366,148.02,147.94,27.66479]
[1641481834279,4.0,148.0,147.94,27.66479]
[1641481834479,4.0,148.01,147.94,27.66479]
[1641481834679,42.16537366,148.02,147.94,27.66479]
[1641481834879,38.16537366,148.02,147.94,27.66479]
[1641481835079,38.16537366,148.02,147.89,101.15327366]
[1641481835080,4.0,147.99,147.89,101.15327366]
[1641481835280,4.0,147.96,147.89,38.16537366]
[1641481835479,4.0,147.96,147.87,9.86]
[1641481835480,8.591,147.96,147.9,14.32071928]
[1641481835782,36.25579,147.96,147.9,14.32071928]
[1641481836680,14.32071928,147.94,147.87,21.30463941]
[1641481838383,14.32071928,147.96,147.89,14.32071928]
[1641481839082,14.32071928,147.95,147.88,14.32071928]
[1641481840785,14.32071928,147.94,147.87,21.30463941]
[1641481842585,14.32071928,147.94,147.87,14.32071928]
[1641481842785,14.32071928,147.94,147.86,41.98550928]
[1641481843787,17.66971233,147.94,147.87,22.73000478]
[1641481846594,4.0,147.92,147.87,22.73000478]
[1641481846794,10.391,147.92,147.87,22.73000478]
[1641481846994,6.391,147.92,147.88,14.32071928]
[1641481847393,4.0,147.91,147.88,1.928e-05]
[1641481847594,4.0,147.9,147.85,49.60269146]
[1641481847793,4.0,147.9,147.81,57.31261083]
[1641481847794,4.0,147.88,147.81,88.30668449]
[1641481847994,4.0,147.86,147.81,30.99407366]
[1641481848194,31.66479,147.87,147.81,30.99407366]
[1641481848595,4.0,147.86,147.81,30.99407366]
[1641481848895,4.0,147.86,147.79,27.66479]
[1641481849498,4.0,147.85,147.77,27.66479]
[1641481849896,27.66479,147.84,147.77,27.66479]
[1641481850099,27.66479,147.84,147.82,4.77714313]
[1641481850900,31.66479,147.84,147.82,4.77714313]
[1641481851101,27.66479,147.84,147.82,4.77714313]
[1641481851400,4.0,147.83,147.77,27.66479]
[1641481851599,27.66479,147.84,147.77,27.66479]
[1641481851600,4.0,147.82,147.77,27.66479]
[1641481852200,4.0,147.83,147.77,27.66479]
[1641481852400,4.0,147.82,147.74,11.43456687]
[1641481852700,6.76269696,147.82,147.74,11.43456687]